fUST/lending_fUST_20260205
["ID","MTS","AMOUNT","RATE_DAILY","PERIOD"]
[404557795,1770289757290,-277.20002748,0.00054794,120]
[404557796,1770289757310,-8041.66,0.00054794,120]
[404557797,1770289757329,-500.0,0.00054794,120]
[404557798,1770289757348,-500.0,0.00054794,120]
[404557799,1770289757368,-500.0,0.00054794,120]
[404557800,1770289757387,-500.0,0.00054794,120]
[404557801,1770289757408,-500.0,0.00054794,120]
[404557802,1770289757428,-504.90017527,0.00054794,120]
[404557803,1770289757448,-500.0,0.00054794,120]
[404557804,1770289757469,-720.66,0.00054794,120]
[404557805,1770289757488,-500.0,0.00054794,120]
[404557806,1770289757508,-508.09286591,0.00054794,120]
[404557807,1770289757528,-500.0,0.00054794,120]
[404557808,1770289757547,-500.0,0.00054794,120]
[404557809,1770289757566,-500.0,0.00054794,120]
[404557810,1770289757584,-500.0,0.00054794,120]
[404557811,1770289757603,-519.46373025,0.00054794,120]
[404557812,1770289757622,-536.45581321,0.00054794,120]
[404557813,1770289757641,-500.0,0.00054794,120]
[404557814,1770289757661,-541.80764007,0.00054794,120]
[404557815,1770289757680,-500.0,0.00054794,120]
[404557816,1770289757700,-500.0,0.00054794,120]
[404557817,1770289757720,-500.0,0.00054794,120]
[404557818,1770289757740,-556.61942682,0.00054794,120]
[404557819,1770289757761,-500.0,0.00054794,120]
[404557820,1770289757784,-513.26578048,0.00054794,120]
[404557821,1770289757803,-520.53738667,0.00054794,120]
[404557822,1770289757824,-500.0,0.00054794,120]
[404557823,1770289757844,-500.0,0.00054794,120]
[404557824,1770289757864,-500.0,0.00054794,120]
[404557825,1770289757884,-500.0,0.00054794,30]
[404557826,1770289757904,-523.35279094,0.00054794,120]
[404557827,1770289757925,-715.97,0.00054794,120]
[404557828,1770289757944,-511.16,0.00054794,120]
[404557829,1770289757964,-500.0,0.00054794,120]
[404557830,1770289757985,-773.78,0.00054794,120]
[404557831,1770289758006,-500.0,0.00054794,120]
[404557832,1770289758026,-500.0,0.00054794,120]
[404557833,1770289758046,-500.0,0.00054794,120]
[404557834,1770289758067,-525.78306903,0.00054794,120]
[404557835,1770289758087,-500.0,0.00054794,120]
[404557836,1770289758107,-519.68226696,0.00054794,120]
[404557837,1770289758127,-500.0,0.00054794,120]
[404557838,1770289758156,-500.0,0.00054794,120]
[404557839,1770289758175,-500.0,0.00054794,120]
[404557840,1770289758194,-556.20717065,0.00054794,120]
[404557841,1770289758216,-587.55268523,0.00054794,120]
[404557842,1770289758256,-500.0,0.00054794,120]
[404557843,1770289758282,-609.04038245,0.00054794,120]
[404557844,1770289758305,-605.7093469,0.00054794,120]
[404557845,1770289758324,-500.0,0.00054794,120]
[404557846,1770289758343,-500.0,0.00054794,120]
[404557847,1770289758362,-500.0,0.00054794,120]
[404557848,1770289758382,-500.0,0.00054794,120]
[404557849,1770289758401,-500.0,0.00054794,120]
[404557850,1770289758420,-500.0,0.00054794,120]
[404557851,1770289758504,-514.96959207,0.00054794,120]
[404557852,1770289758536,-500.0,0.00054794,120]
[404557853,1770289758557,-500.0,0.00054794,120]
[404557854,1770289758579,-500.0,0.00054794,120]
[404557855,1770289758599,-565.33611118,0.00054794,120]
[404557856,1770289758619,-500.0,0.00054794,120]
[404557857,1770289758640,-500.0,0.00054794,120]
[404557858,1770289758659,-500.0,0.00054794,120]
[404557859,1770289758680,-500.0,0.00054794,120]
[404557860,1770289758700,-500.0,0.00054794,120]
[404557861,1770289758720,-500.0,0.00054794,120]
[404557862,1770289758740,-500.0,0.00054794,120]
[404557863,1770289758763,-500.0,0.00054794,120]
[404557864,1770289758783,-500.0,0.00054794,120]
[404557865,1770289758805,-500.0,0.00054794,120]
[404557866,1770289758825,-500.0,0.00054794,120]
[404557867,1770289758845,-613.29218657,0.00054794,120]
[404557868,1770289758864,-523.90822892,0.00054794,120]
[404557869,1770289758884,-500.0,0.00054794,120]
[404557870,1770289758904,-500.0,0.00054794,120]
[404557871,1770289758925,-522.46351452,0.00054794,120]
[404557872,1770289758945,-500.43120087,0.00054794,120]
[404557873,1770289758964,-508.40637334,0.00054794,120]
[404557874,1770289758983,-572.21318559,0.00054794,120]
[404557875,1770289759004,-500.0,0.00054794,120]
[404557876,1770289759025,-500.0,0.00054794,120]
[404557877,1770289759044,-500.0,0.00054794,120]
[404557878,1770289759064,-500.0,0.00054794,120]
[404557879,1770289759084,-500.0,0.00054794,120]
[404557880,1770289759103,-151.0,0.00054794,120]
[404557881,1770289759123,-500.0,0.00054794,120]
[404557882,1770289759143,-502.24473179,0.00054794,120]
[404557883,1770289759164,-561.44012365,0.00054794,120]
[404557884,1770289759184,-522.09156037,0.00054794,120]
[404557885,1770289759204,-500.0,0.00054794,120]
[404557886,1770289759223,-500.0,0.00054794,120]
[404557887,1770289759242,-500.0,0.00054794,120]
[404557888,1770289759263,-500.0,0.00054794,120]
[404557889,1770289759283,-500.0,0.00054794,120]
[404557890,1770289759303,-500.0,0.00054794,120]
[404557891,1770289759323,-500.0,0.00054794,120]
[404557892,1770289759343,-536.86505912,0.00054794,120]
[404557893,1770289759362,-500.0,0.00054794,120]
[404557894,1770289759381,-500.0,0.00054794,120]
[404557895,1770289759401,-500.0,0.00054794,120]
[404557896,1770289759420,-500.0,0.00054794,120]
[404557897,1770289759440,-562.02150673,0.00054794,120]
[404557898,1770289759459,-547.33301491,0.00054794,120]
[404557899,1770289759477,-500.0,0.00054794,120]
[404557900,1770289759496,-500.0,0.00054794,120]
[404557901,1770289759515,-500.0,0.00054794,120]
[404557902,1770289759534,-500.0,0.00054794,120]
[404557903,1770289759552,-621.76709553,0.00054794,120]
[404557904,1770289759571,-541.30524817,0.00054794,120]
[404557905,1770289759589,-563.05116406,0.00054794,120]
[404557906,1770289759610,-500.0,0.00054794,120]
[404557907,1770289759630,-150.0,0.00054794,120]
[404557908,1770289759650,-500.0,0.00054794,120]
[404557909,1770289759669,-599.56024478,0.00054794,120]
[404557910,1770289759690,-500.0,0.00054794,120]
[404557911,1770289759708,-500.0,0.00054794,120]
[404557912,1770289759727,-500.0,0.00054794,120]
[404557913,1770289759747,-500.0,0.00054794,120]
[404557914,1770289759771,-710.54,0.00054794,120]
[404557915,1770289759791,-500.0,0.00054794,120]
[404557916,1770289759812,-500.0,0.00054794,120]
[404557917,1770289759831,-500.0,0.00054794,120]
[404557918,1770289759850,-500.0,0.00054794,120]
[404557919,1770289759870,-500.0,0.00054794,120]
[404557920,1770289759890,-500.0,0.00054794,120]
[404557921,1770289759910,-500.0,0.00054794,120]
[404557922,1770289759929,-500.0,0.00054794,120]
[404557923,1770289759950,-500.0,0.00054794,120]
[404557924,1770289759969,-500.0,0.00054794,120]
[404557925,1770289759987,-610.44338243,0.00054794,120]
[404557926,1770289760007,-500.0,0.00054794,120]
[404557927,1770289760026,-500.0,0.00054794,120]
[404557928,1770289760048,-500.0,0.00054794,120]
[404557929,1770289760068,-500.0,0.00054794,120]
[404557930,1770289760088,-500.0,0.00054794,120]
[404557931,1770289760106,-500.0,0.00054794,120]
[404557932,1770289760125,-500.0,0.00054794,120]
[404557933,1770289760144,-500.0,0.00054794,120]
[404557934,1770289760163,-500.0,0.00054794,120]
[404557935,1770289760183,-574.81074062,0.00054794,120]
[404557936,1770289760202,-500.0,0.00054794,120]
[404557937,1770289760221,-500.0,0.00054794,120]
[404557938,1770289760240,-500.0,0.00054794,120]
[404557939,1770289760260,-500.0,0.00054794,120]
[404557940,1770289760280,-500.0,0.00054794,120]
[404557941,1770289760299,-500.0,0.00054794,120]
[404557942,1770289760317,-500.0,0.00054794,120]
[404557943,1770289760336,-500.0,0.00054795,120]
[404557944,1770289760355,-500.0,0.00054795,120]
[404557945,1770289760446,-500.0,0.00054795,120]
[404557946,1770289760467,-500.0,0.00054795,120]
[404557947,1770289760487,-500.0,0.00054795,120]
[404557948,1770289760508,-500.0,0.00054795,120]
[404557949,1770289760527,-500.0,0.00054795,120]
[404557950,1770289760548,-500.0,0.00054795,120]
[404557951,1770289760566,-500.0,0.00054795,120]
[404557952,1770289760586,-500.0,0.00054795,120]
[404557953,1770289760605,-500.0,0.00054795,120]
[404557954,1770289760625,-500.0,0.00054795,120]
[404557955,1770289760645,-500.0,0.00054795,120]
[404557956,1770289760665,-500.0,0.00054795,120]
[404557957,1770289760684,-500.0,0.00054795,120]
[404557958,1770289760704,-500.0,0.00054795,120]
[404557959,1770289760722,-500.0,0.00054795,120]
[404557960,1770289760742,-4500.0,0.000549,120]
[404557961,1770289760763,-2627.4501851,0.00055322,4]
[404557962,1770289760786,-2627.4501851,0.00055332,4]
[404557963,1770289760805,-8041.66,0.00055342,120]
[404557964,1770289760824,-500.0,0.00055342,120]
[404557965,1770289760844,-500.0,0.00055342,120]
[404557966,1770289760864,-500.0,0.00055342,120]
[404557967,1770289760883,-500.0,0.00055342,120]
[404557968,1770289760902,-500.0,0.00055342,120]
[404557969,1770289760922,-274.270417,0.00055342,120]
[404557970,1770289760941,-720.66,0.00055342,120]
[404557971,1770289760960,-500.0,0.00055342,120]
[404557972,1770289760980,-500.0,0.00055342,120]
[404557973,1770289761000,-500.0,0.00055342,120]
[404557974,1770289761021,-500.0,0.00055342,120]
[404557975,1770289761042,-500.0,0.00055342,120]
[404557976,1770289761062,-500.0,0.00055342,120]
[404557977,1770289761082,-500.0,0.00055342,120]
[404557978,1770289761102,-500.0,0.00055342,120]
[404557979,1770289761123,-500.0,0.00055342,120]
[404557980,1770289761143,-500.0,0.00055342,120]
[404557981,1770289761162,-500.0,0.00055342,120]
[404557982,1770289761181,-500.0,0.00055342,30]
[404557983,1770289761202,-715.97,0.00055342,120]
[404557984,1770289761222,-511.16,0.00055342,120]
[404557985,1770289761243,-500.0,0.00055342,120]
[404557986,1770289761262,-773.78,0.00055342,120]
[404557987,1770289761282,-500.0,0.00055342,120]
[404557988,1770289761301,-500.0,0.00055342,120]
[404557989,1770289761320,-500.0,0.00055342,120]
[404557990,1770289761342,-500.0,0.00055342,120]
[404557991,1770289761367,-500.0,0.00055342,120]
[404557992,1770289761392,-500.0,0.00055342,120]
[404557993,1770289761416,-500.0,0.00055342,120]
[404557994,1770289761441,-500.0,0.00055342,120]
[404557995,1770289761466,-500.0,0.00055342,120]
[404557996,1770289761493,-500.0,0.00055342,120]
[404557997,1770289761518,-578.75026868,0.00055342,120]
[404557998,1770289761542,-500.0,0.00055342,120]
[404557999,1770289761565,-500.0,0.00055342,120]
[404558000,1770289761589,-500.0,0.00055342,120]
[404558001,1770289761612,-500.0,0.00055342,120]
[404558002,1770289761639,-500.0,0.00055342,120]
[404558003,1770289761664,-500.0,0.00055342,120]
[404558004,1770289761685,-514.11894208,0.00055342,120]
[404558005,1770289761708,-500.0,0.00055342,120]
[404558006,1770289761731,-500.0,0.00055342,120]
[404558007,1770289761758,-520.94945994,0.00055342,120]
[404558008,1770289761788,-500.0,0.00055342,120]
[404558009,1770289761817,-500.0,0.00055342,120]
[404558010,1770289761845,-516.97182034,0.00055342,120]
[404558011,1770289761866,-500.0,0.00055342,120]
[404558012,1770289761887,-542.43287682,0.00055342,120]
[404558013,1770289761911,-500.0,0.00055342,120]
[404558014,1770289761938,-500.0,0.00055342,120]
[404558015,1770289761960,-544.71587222,0.00055342,120]
[404558016,1770289761985,-500.0,0.00055342,120]
[404558017,1770289762012,-500.0,0.00055342,120]
[404558018,1770289762036,-500.0,0.00055342,120]
[404558019,1770289762060,-500.0,0.00055342,120]
[404558020,1770289762083,-500.0,0.00055342,120]
[404558021,1770289762106,-409.88797838,0.00055342,120]
[404558022,1770289762131,-500.0,0.00055342,120]
[404558023,1770289762154,-500.0,0.00055342,120]
[404558024,1770289762178,-546.51385002,0.00055342,120]
[404558025,1770289762201,-500.0,0.00055342,120]
[404558026,1770289762226,-500.0,0.00055342,120]
[404558027,1770289762249,-389.60285899,0.00055342,120]
[404558028,1770289762273,-500.0,0.00055342,120]
[404558029,1770289762295,-500.0,0.00055342,120]
[404558030,1770289762317,-500.0,0.00055342,120]
[404558031,1770289762339,-500.0,0.00055342,120]
[404558032,1770289762363,-500.0,0.00055342,120]
[404558033,1770289762385,-500.0,0.00055342,120]
[404558034,1770289762408,-500.0,0.00055342,120]
[404558035,1770289762530,-500.0,0.00055342,120]
[404558036,1770289762549,-586.39608682,0.00055342,120]
[404558037,1770289762569,-710.54,0.00055342,120]
[404558038,1770289762588,-500.0,0.00055342,120]
[404558039,1770289762607,-500.0,0.00055342,120]
[404558040,1770289762626,-302.85561218,0.00055342,120]
[404558041,1770289762706,-197.14438782,0.00055342,120]
[404558042,1770289762724,-500.0,0.00055342,120]
[404558043,1770289762743,-500.0,0.00055342,120]
[404558044,1770289762763,-500.0,0.00055342,120]
[404558045,1770289762787,-500.0,0.00055342,120]
[404558046,1770289762807,-500.0,0.00055342,120]
[404558047,1770289762827,-500.0,0.00055342,120]
[404558048,1770289762849,-500.0,0.00055342,120]
[404558049,1770289762868,-500.0,0.00055342,120]
[404558050,1770289762887,-500.0,0.00055342,120]
[404558051,1770289762906,-500.0,0.00055342,120]
[404558052,1770289762925,-500.0,0.00055342,120]
[404558053,1770289762944,-244.80309518,0.00055342,120]
[404558054,1770289762962,-500.0,0.00055342,120]
[404558055,1770289762981,-500.0,0.00055342,120]
[404558056,1770289763000,-500.0,0.00055342,120]
[404558057,1770289763022,-500.0,0.00055342,120]
[404558058,1770289763043,-151.0,0.00055479,120]
[404558059,1770289763064,-151.0,0.0005588,120]
[404558060,1770289763085,-151.0,0.0005588,120]
[404558061,1770289763107,-151.0,0.0005588,120]
[404558062,1770289763128,-2627.4501851,0.0005588,4]
[404558063,1770289763148,-8041.66,0.0005589,120]
[404558064,1770289763168,-500.0,0.0005589,120]
[404558065,1770289763187,-500.0,0.0005589,120]
[404558066,1770289763207,-500.0,0.0005589,120]
[404558067,1770289763229,-500.0,0.0005589,120]
[404558068,1770289763248,-500.0,0.0005589,120]
[404558069,1770289763270,-720.66,0.0005589,120]
[404558070,1770289763290,-500.0,0.0005589,120]
[404558071,1770289763310,-500.0,0.0005589,120]
[404558072,1770289763330,-500.0,0.0005589,120]
[404558073,1770289763348,-556.98561532,0.0005589,120]
[404558074,1770289763367,-613.61548388,0.0005589,120]
[404558075,1770289763387,-500.0,0.0005589,120]
[404558076,1770289763405,-500.0,0.0005589,120]
[404558077,1770289763424,-509.43588178,0.0005589,120]
[404558078,1770289763443,-510.316571,0.0005589,120]
[404558079,1770289763462,-500.0,0.0005589,30]
[404558080,1770289763481,-715.97,0.0005589,120]
[404558081,1770289763500,-511.16,0.0005589,120]
[404558082,1770289763520,-500.0,0.0005589,120]
[404558083,1770289763540,-773.78,0.0005589,120]
[404558084,1770289763560,-500.0,0.0005589,120]
[404558085,1770289763581,-500.0,0.0005589,120]
[404558086,1770289763602,-500.0,0.0005589,120]
[404558087,1770289763623,-500.0,0.0005589,120]
[404558088,1770289763644,-500.0,0.0005589,120]
[404558089,1770289763672,-500.0,0.0005589,120]
[404558090,1770289763713,-500.0,0.0005589,120]
[404558091,1770289763743,-500.0,0.0005589,120]
[404558092,1770289763769,-500.0,0.0005589,120]
[404558093,1770289763790,-500.0,0.0005589,120]
[404558094,1770289763812,-500.0,0.0005589,120]
[404558095,1770289763832,-500.0,0.0005589,120]
[404558096,1770289763853,-500.0,0.0005589,120]
[404558097,1770289763873,-606.28805844,0.0005589,120]
[404558098,1770289763892,-576.85357948,0.0005589,120]
[404558099,1770289763914,-500.0,0.0005589,120]
[404558100,1770289763935,-633.13712997,0.0005589,120]
[404558101,1770289763956,-500.0,0.0005589,120]
[404558102,1770289763977,-500.0,0.0005589,120]
[404558103,1770289763998,-500.0,0.0005589,120]
[404558104,1770289764022,-500.0,0.0005589,120]
[404558105,1770289764045,-638.9957463,0.0005589,120]
[404558106,1770289764068,-588.724615,0.0005589,120]
[404558107,1770289764090,-500.0,0.0005589,120]
[404558108,1770289764112,-500.0,0.0005589,120]
[404558109,1770289764135,-500.0,0.0005589,120]
[404558110,1770289764155,-500.0,0.0005589,120]
[404558111,1770289764175,-500.0,0.0005589,120]
[404558112,1770289764197,-500.0,0.0005589,120]
[404558113,1770289764218,-500.0,0.0005589,120]
[404558114,1770289764238,-500.0,0.0005589,120]
[404558115,1770289764261,-500.0,0.0005589,120]
[404558116,1770289764284,-500.0,0.0005589,120]
[404558117,1770289764309,-710.54,0.0005589,120]
[404558118,1770289764333,-500.0,0.0005589,120]
[404558119,1770289764355,-532.75973349,0.0005589,120]
[404558120,1770289764375,-500.0,0.0005589,120]
[404558121,1770289764397,-500.0,0.0005589,120]
[404558122,1770289764418,-550.92453552,0.0005589,120]
[404558123,1770289764438,-529.49484185,0.0005589,120]
[404558124,1770289764459,-549.05929405,0.0005589,120]
[404558125,1770289764481,-598.10517263,0.0005589,120]
[404558126,1770289764502,-635.34058013,0.0005589,120]
[404558127,1770289764527,-500.0,0.0005589,120]
[404558128,1770289764552,-500.0,0.0005589,120]
[404558129,1770289764572,-500.0,0.0005589,120]
[404558130,1770289764591,-500.0,0.0005589,120]
[404558131,1770289764611,-572.31976683,0.0005589,120]
[404558132,1770289764632,-500.0,0.0005589,120]
[404558133,1770289764652,-4734.63800308,0.00055999,120]
[404558134,1770289764673,-259.23144692,0.00056164,120]
[404558135,1770289764695,-8041.66,0.00056438,120]
[404558136,1770289764715,-500.0,0.00056438,120]
[404558137,1770289764736,-500.0,0.00056438,120]
[404558138,1770289764848,-500.0,0.00056438,120]
[404558139,1770289764870,-500.0,0.00056438,120]
[404558140,1770289764893,-500.0,0.00056438,120]
[404558141,1770289764915,-720.66,0.00056438,120]
[404558142,1770289764937,-500.0,0.00056438,120]
[404558143,1770289764958,-559.24109974,0.00056438,120]
[404558144,1770289764980,-500.0,0.00056438,120]
[404558145,1770289765001,-500.0,0.00056438,120]
[404558146,1770289765022,-500.0,0.00056438,30]
[404558147,1770289765043,-715.97,0.00056438,120]
[404558148,1770289765063,-511.16,0.00056438,120]
[404558149,1770289765085,-500.0,0.00056438,120]
[404558150,1770289765106,-773.78,0.00056438,120]
[404558151,1770289765127,-548.43586158,0.00056438,120]
[404558152,1770289765149,-500.0,0.00056438,120]
[404558153,1770289765170,-500.0,0.00056438,120]
[404558154,1770289765191,-500.0,0.00056438,120]
[404558155,1770289765212,-500.0,0.00056438,120]
[404558156,1770289765234,-592.24200222,0.00056438,120]
[404558157,1770289765256,-500.0,0.00056438,120]
[404558158,1770289765278,-500.0,0.00056438,120]
[404558159,1770289765297,-500.0,0.00056438,120]
[404558160,1770289765317,-500.0,0.00056438,120]
[404558161,1770289765337,-500.0,0.00056438,120]
[404558162,1770289765358,-500.0,0.00056438,120]
[404558163,1770289765378,-500.0,0.00056438,120]
[404558164,1770289765397,-500.0,0.00056438,120]
[404558165,1770289765416,-500.0,0.00056438,120]
[404558166,1770289765436,-500.0,0.00056438,120]
[404558167,1770289765458,-500.0,0.00056438,120]
[404558168,1770289765478,-500.0,0.00056438,120]
[404558169,1770289765497,-500.0,0.00056438,120]
[404558170,1770289765516,-500.0,0.00056438,120]
[404558171,1770289765536,-500.0,0.00056438,120]
[404558172,1770289765556,-500.0,0.00056438,120]
[404558173,1770289765575,-500.0,0.00056438,120]
[404558174,1770289765593,-710.54,0.00056438,120]
[404558175,1770289765612,-500.0,0.00056438,120]
[404558176,1770289765631,-500.0,0.00056438,120]
[404558177,1770289765650,-449.671332,0.00056438,120]
[404558178,1770289765671,-449.671332,0.00056438,120]
[404558179,1770289765690,-449.671332,0.00056438,120]
[404558180,1770289765711,-449.671332,0.00056438,120]
[404558181,1770289765732,-151.0,0.00056438,120]
[404558182,1770289765753,-500.0,0.00056438,120]
[404558183,1770289765778,-214.924333,0.00056438,120]
[404558184,1770289765797,-151.0,0.00056438,120]
[404558185,1770289765818,-151.0,0.00056438,120]
[404558186,1770289765838,-180.0,0.00056794,120]
[404558187,1770289765857,-2627.4501851,0.00056966,5]
[404558188,1770289765876,-8041.66,0.00056986,120]
[404558189,1770289765895,-500.0,0.00056986,120]
[404558190,1770289765913,-500.0,0.00056986,120]
[404558191,1770289765932,-500.0,0.00056986,120]
[404558192,1770289765952,-500.0,0.00056986,120]
[404558193,1770289765972,-500.0,0.00056986,120]
[404558194,1770289765992,-720.66,0.00056986,120]
[404558195,1770289766012,-500.0,0.00056986,120]
[404558196,1770289766034,-500.0,0.00056986,120]
[404558197,1770289766053,-500.0,0.00056986,30]
[404558198,1770289766072,-715.97,0.00056986,120]
[404558199,1770289766091,-511.16,0.00056986,120]
[404558200,1770289766110,-500.0,0.00056986,120]
[404558201,1770289766130,-773.78,0.00056986,120]
[404558202,1770289766150,-500.0,0.00056986,120]
[404558203,1770289766169,-500.0,0.00056986,120]
[404558204,1770289766190,-500.0,0.00056986,120]
[404558205,1770289766209,-500.0,0.00056986,120]
[404558206,1770289766229,-500.0,0.00056986,120]
[404558207,1770289766248,-500.0,0.00056986,120]
[404558208,1770289766269,-500.0,0.00056986,120]
[404558209,1770289766289,-500.0,0.00056986,120]
[404558210,1770289766309,-500.0,0.00056986,120]
[404558211,1770289766328,-500.0,0.00056986,120]
[404558212,1770289766348,-500.0,0.00056986,120]
[404558213,1770289766368,-500.0,0.00056986,120]
[404558214,1770289766387,-550.29552402,0.00056986,120]
[404558215,1770289766406,-526.70253161,0.00056986,120]
[404558216,1770289766425,-500.0,0.00056986,120]
[404558217,1770289766445,-500.0,0.00056986,120]
[404558218,1770289766465,-182.095931,0.00056986,120]
[404558219,1770289766485,-500.0,0.00056986,120]
[404558220,1770289766506,-710.54,0.00056986,120]
[404558221,1770289766526,-500.0,0.00056986,120]
[404558222,1770289766546,-500.0,0.00056986,120]
[404558223,1770289766564,-568.28241492,0.00056986,120]
[404558224,1770289766584,-151.0,0.00057198,120]
[404558225,1770289766602,-151.0,0.00057198,120]
[404558226,1770289766622,-164.139323,0.00057198,30]
[404558227,1770289766641,-384.205942,0.00057207,120]
[404558228,1770289766661,-384.205942,0.00057207,120]
[404558229,1770289766681,-384.205942,0.00057207,120]
[404558230,1770289766700,-384.205942,0.00057207,120]
[404558231,1770289766720,-2627.4501851,0.00057524,5]
[404558232,1770289766738,-8041.66,0.00057534,120]
[404558233,1770289766758,-500.0,0.00057534,120]
[404558234,1770289766781,-583.17387512,0.00057534,120]
[404558235,1770289766801,-500.0,0.00057534,120]
[404558236,1770289766821,-329.502634,0.00057534,120]
[404558237,1770289766840,-500.0,0.00057534,120]
[404558238,1770289766859,-720.66,0.00057534,120]
[404558239,1770289766879,-647.00000085,0.00057534,120]
[404558240,1770289766900,-638.102717,0.00057534,120]
[404558241,1770289766919,-500.0,0.00057534,30]
[404558242,1770289766938,-715.97,0.00057534,120]
[404558243,1770289767036,-511.16,0.00057534,120]
[404558244,1770289767055,-500.0,0.00057534,120]
[404558245,1770289767075,-773.78,0.00057534,120]
[404558246,1770289767095,-323.66325852,0.00057534,120]
[404558247,1770289767114,-500.0,0.00057534,120]
[404558248,1770289767134,-500.0,0.00057534,120]
[404558249,1770289767154,-500.0,0.00057534,120]
[404558250,1770289767173,-500.0,0.00057534,120]
[404558251,1770289767193,-500.0,0.00057534,120]
[404558252,1770289767213,-500.0,0.00057534,120]
[404558253,1770289767232,-500.0,0.00057534,120]
[404558254,1770289767252,-500.0,0.00057534,120]
[404558255,1770289767273,-500.0,0.00057534,120]
[404558256,1770289767293,-500.0,0.00057534,120]
[404558257,1770289767312,-500.0,0.00057534,120]
[404558258,1770289767332,-500.0,0.00057534,120]
[404558259,1770289767351,-710.54,0.00057534,120]
[404558260,1770289767370,-500.0,0.00057534,120]
[404558261,1770289767390,-500.0,0.00057534,120]
[404558262,1770289767410,-151.0,0.00057534,120]
[404558263,1770289767428,-165.070345,0.00057534,120]
[404558264,1770289768155,-791.79194958,0.00058,90]
[404558265,1770289768175,-163.59,0.00058,14]
[404558266,1770289768194,-17895.40162162,0.00058,14]
[404558267,1770289775174,500.0,0.00054793,120]
[404558268,1770289775228,272.46419552,0.00054793,120]
[404558269,1770289783476,359.737066,0.00055342,120]
[404558270,1770289783741,359.737066,0.00056438,120]
[404558271,1770289784059,359.737066,0.00057534,120]
[404558272,1770289785266,359.737066,0.00055342,120]
[404558273,1770289785578,359.737066,0.00056438,120]
[404558274,1770289785877,359.737066,0.00057534,120]
[404558275,1770289786850,359.737066,0.00055342,120]
[404558276,1770289787151,359.737066,0.00056438,120]
[404558277,1770289787444,359.737066,0.00057534,120]
[404558278,1770289788357,359.737066,0.00055342,120]
[404558279,1770289788645,359.737066,0.00056438,120]
[404558280,1770289789014,359.737066,0.00057534,120]
[404558291,1770289832238,-526.56416287,0.00057982,28]
[404558292,1770289832250,-3923.98590714,0.00057982,28]
[404558293,1770289832260,-1076.16388608,0.00058,14]
[404558324,1770289838326,-13826.2444923,0.00058,14]
[404558325,1770289838336,-2627.4501851,0.00058072,5]
[404558326,1770289838345,-500.0,0.00058082,120]
[404558327,1770289838355,-500.0,0.00058082,120]
[404558328,1770289838364,-500.0,0.00058082,120]
[404558329,1770289838373,-720.66,0.00058082,120]
[404558330,1770289838383,-500.0,0.00058082,30]
[404558331,1770289838392,-715.97,0.00058082,120]
[404558332,1770289838401,-511.16,0.00058082,120]
[404558334,1770289838410,-500.0,0.00058082,120]
[404558335,1770289838419,-773.78,0.00058082,120]